bitfinex/quotes_BTCUSD_20250614
["timestamp","ask_amount","ask_price","bid_price","bid_amount"]
[1749921849491,0.55663663,104800.0,104790.0,0.29031334]
[1749921849709,0.57952271,104800.0,104790.0,0.29031334]
[1749921849926,0.57952272,104800.0,104790.0,0.29031334]
[1749921855331,0.57952273,104800.0,104790.0,0.29031334]
[1749921857108,0.57952279,104800.0,104790.0,0.29031334]
[1749921858190,0.58906459,104800.0,104790.0,0.29031288]
[1749921859583,0.59801545,104800.0,104790.0,0.28077063]
[1749921859841,0.5913023,104800.0,104790.0,0.28077063]
[1749921860058,0.59801545,104800.0,104790.0,0.28077063]
[1749921860477,0.5980157,104800.0,104790.0,0.28077063]
[1749921861000,0.59801621,104800.0,104790.0,0.28077063]
[1749921861435,0.59801621,104800.0,104790.0,0.29031288]
[1749921862387,0.5980162,104800.0,104790.0,0.29031288]
[1749921863350,0.59130273,104800.0,104790.0,0.29031288]
[1749921863659,0.40717651,104800.0,104790.0,0.29031288]
[1749921863863,0.38429043,104800.0,104790.0,0.29031288]
[1749921865338,0.38429071,104800.0,104790.0,0.29031288]
[1749921865764,0.63295395,104800.0,104790.0,0.27122829]
[1749921865993,0.65584004,104800.0,104790.0,0.28077054]
[1749921866186,0.65584004,104800.0,104790.0,0.28077063]
[1749921866383,0.46500035,104800.0,104790.0,0.28077063]
[1749921866732,0.39763445,104800.0,104790.0,0.29031288]
[1749921866896,0.37474837,104800.0,104790.0,0.29031288]
[1749921867720,0.37474883,104800.0,104790.0,0.29031288]
[1749921867927,0.3652074,104800.0,104790.0,0.29031288]
[1749921868137,0.3680356,104800.0,104790.0,0.29031288]
[1749921869225,0.36803546,104800.0,104790.0,0.29031288]
[1749921869431,0.37757717,104800.0,104790.0,0.29031288]
[1749921869654,0.36803546,104800.0,104790.0,0.29031288]
[1749921870273,0.37757717,104800.0,104790.0,0.29031288]
[1749921871002,0.36803546,104800.0,104790.0,0.29031288]
[1749921871553,0.37757429,104800.0,104790.0,0.29031288]
[1749921871700,0.37757425,104800.0,104790.0,0.29031288]
[1749921872149,0.37757421,104800.0,104790.0,0.29031288]
[1749921872526,0.37757395,104800.0,104790.0,0.29031288]
[1749921873555,0.36862448,104800.0,104790.0,0.29031288]
[1749921873766,0.37757395,104800.0,104790.0,0.29031288]
[1749921874389,0.36803224,104800.0,104790.0,0.29031288]
[1749921874612,0.35908277,104800.0,104790.0,0.29031288]
[1749921874818,0.36803226,104800.0,104790.0,0.29031288]
[1749921875653,0.36803215,104800.0,104790.0,0.29031288]
[1749921876922,0.35849072,104800.0,104790.0,0.29031288]
[1749921877132,0.35849071,104800.0,104790.0,0.29031288]
[1749921877351,0.36803214,104800.0,104790.0,0.29031288]
[1749921877551,0.36803176,104800.0,104790.0,0.29031288]
[1749921878432,0.00894908,104800.0,104790.0,0.29031288]
[1749921878652,0.37460846,104810.0,104800.0,0.28340164]
[1749921878860,0.37460762,104810.0,104800.0,0.28340164]
[1749921879063,0.38414805,104810.0,104800.0,0.28340164]
[1749921879480,0.3841357,104810.0,104800.0,0.28340164]
[1749921880371,0.40321693,104810.0,104800.0,0.28340164]
[1749921880581,0.40321693,104810.0,104800.0,0.2738603]
[1749921880582,0.59403841,104810.0,104800.0,0.2738603]
[1749921880786,0.42610301,104810.0,104800.0,0.29294307]
[1749921880941,0.4356439,104810.0,104800.0,0.29294307]
[1749921881144,0.42610301,104810.0,104800.0,0.29294307]
[1749921881363,0.41275773,104810.0,104800.0,0.29294307]
[1749921881565,0.40382184,104810.0,104800.0,0.29294307]
[1749921881737,0.41275815,104810.0,104800.0,0.29294307]
[1749921881931,0.41275879,104810.0,104800.0,0.29294307]
[1749921882927,0.04709877,104810.0,104800.0,0.29294307]
[1749921883138,0.04770335,104810.0,104800.0,0.29294307]
[1749921883774,0.20038149,104800.0,104790.0,0.41202341]
[1749921883991,0.02862457,104800.0,104790.0,0.2718281]
[1749921884609,0.03816655,104800.0,104790.0,0.2718281]
[1749921886661,0.22900624,104800.0,104790.0,0.26228585]
[1749921886814,0.22900624,104800.0,104790.0,0.42156594]
[1749921887019,0.22900624,104800.0,104790.0,0.43110838]
[1749921887233,0.21946499,104800.0,104790.0,0.41202341]
[1749921887427,0.21946499,104800.0,104790.0,0.27182856]
[1749921887639,0.21946499,104800.0,104790.0,0.43110856]
[1749921888199,0.21946499,104800.0,104790.0,0.26228603]
[1749921888402,0.21946499,104800.0,104790.0,0.42156603]
[1749921888577,0.0286253,104800.0,104790.0,0.43110837]
[1749921889976,0.21946499,104800.0,104790.0,0.43110856]
[1749921890587,0.21946499,104800.0,104790.0,0.440651]
[1749921891295,0.21946499,104800.0,104790.0,0.281371]
[1749921891496,0.30250873,104800.0,104790.0,0.440651]
[1749921892180,0.59381162,104810.0,104800.0,0.26448158]
[1749921892730,0.59381327,104810.0,104800.0,0.26448158]
[1749921893325,0.58487592,104810.0,104800.0,0.26448158]
[1749921893538,0.63617326,104810.0,104800.0,0.26448158]
[1749921893741,0.63617328,104810.0,104800.0,0.26448158]
[1749921894344,0.6266323,104810.0,104800.0,0.0641]
[1749921895152,0.6266323,104810.0,104800.0,0.26448167]
[1749921895352,0.62663186,104810.0,104800.0,0.26448167]
[1749921896791,0.62663186,104810.0,104800.0,0.0641]
[1749921897739,0.62663186,104810.0,104800.0,0.26448158]
[1749921897943,0.62663186,104810.0,104800.0,0.0641]
[1749921898150,0.72278108,104810.0,104800.0,0.0641]
[1749921898355,0.72948535,104810.0,104800.0,0.0641]
[1749921899216,0.72948746,104810.0,104800.0,0.0641]
[1749921900067,0.72054843,104810.0,104800.0,0.0641]
[1749921900284,0.72948746,104810.0,104800.0,0.0641]
[1749921901558,0.68712746,104810.0,104800.0,0.0641]
[1749921901772,0.88872746,104810.0,104800.0,0.0641]
[1749921902851,0.88872746,104810.0,104770.0,0.20052952]
[1749921902852,0.01908697,104780.0,104770.0,0.20052952]
[1749921903078,0.02863013,104780.0,104770.0,0.21961803]
[1749921903290,0.02863013,104780.0,104770.0,0.28401803]
[1749921903509,0.02863004,104780.0,104770.0,0.28401803]
[1749921903766,0.22904969,104780.0,104770.0,0.28401803]
[1749921903995,0.03817357,104780.0,104770.0,0.28401803]
[1749921904201,0.03817357,104780.0,104770.0,0.44625803]
[1749921904406,0.04771701,104780.0,104770.0,0.44625803]
[1749921904827,0.04771701,104780.0,104770.0,0.28701803]
[1749921905059,0.04771701,104780.0,104770.0,0.44621803]
[1749921905931,0.04771701,104780.0,104770.0,0.28701803]
[1749921906141,0.04771701,104780.0,104770.0,0.45021803]
[1749921906778,0.04771701,104780.0,104770.0,0.44321803]
[1749921907218,0.04771765,104780.0,104770.0,0.44621803]
[1749921907861,0.03817394,104780.0,104770.0,0.44621803]
[1749921908074,0.03817394,104780.0,104770.0,0.28701803]
[1749921908296,0.03817394,104780.0,104770.0,0.44621803]
[1749921908510,0.02862995,104780.0,104770.0,0.28701803]
[1749921908726,0.02862995,104780.0,104770.0,0.44621803]
[1749921908955,0.01908642,104780.0,104770.0,0.44621803]
[1749921909178,0.01908642,104780.0,104770.0,0.28701803]
[1749921909391,0.00954298,104780.0,104770.0,0.45576192]
[1749921909607,0.35908505,104790.0,104780.0,0.28210707]
[1749921909822,0.37755444,104790.0,104780.0,0.28210716]
[1749921910273,0.37817038,104790.0,104780.0,0.29165041]
[1749921910695,0.38709934,104790.0,104780.0,0.30119357]
[1749921910907,0.36862749,104790.0,104780.0,0.30119357]
[1749921911324,0.37817029,104790.0,104780.0,0.30119357]
[1749921911790,0.35908459,104790.0,104780.0,0.30119357]
[1749921912028,0.36862721,104790.0,104780.0,0.30119357]
[1749921912443,0.36862712,104790.0,104780.0,0.30119357]
[1749921912864,0.37816983,104790.0,104780.0,0.30119357]
[1749921913322,0.36862712,104790.0,104780.0,0.30119357]
[1749921913543,0.37816983,104790.0,104780.0,0.30119357]
[1749921913752,0.36862712,104790.0,104780.0,0.30119357]
[1749921913964,0.37816974,104790.0,104780.0,0.30119357]
[1749921914410,0.36862703,104790.0,104780.0,0.30119357]
[1749921914830,0.37816965,104790.0,104780.0,0.30119357]
[1749921915701,0.36862703,104790.0,104780.0,0.30119357]
[1749921915921,0.34,104790.0,104780.0,0.30109654]
[1749921916980,0.34954207,104790.0,104780.0,0.30109654]
[1749921917185,0.34,104790.0,104780.0,0.30109654]
[1749921918238,0.38770799,104800.0,104790.0,0.28208548]
[1749921918417,0.396633,104800.0,104790.0,0.28208548]
[1749921919546,0.58747269,104800.0,104790.0,0.28208548]
[1749921919745,0.61033548,104800.0,104790.0,0.28208548]
[1749921920932,0.6103355,104800.0,104790.0,0.28208548]
[1749921923450,0.61033543,104800.0,104790.0,0.28208548]
[1749921925228,0.39148702,104800.0,104790.0,0.28208548]
[1749921925429,0.38709573,104800.0,104790.0,0.28208548]
[1749921925838,0.38709567,104800.0,104790.0,0.28208548]
[1749921926063,0.36801225,104800.0,104790.0,0.28208548]
[1749921926276,0.38709538,104800.0,104790.0,0.28208548]
[1749921926488,0.37816582,104800.0,104790.0,0.28208548]
[1749921926928,0.38709527,104800.0,104790.0,0.28208548]
[1749921927163,0.34,104800.0,104790.0,0.28208548]
[1749921927370,0.34954125,104800.0,104790.0,0.44124548]
[1749921927585,0.34,104800.0,104790.0,0.44124548]
[1749921932353,0.34954116,104800.0,104790.0,0.44124548]
[1749921933238,0.34,104800.0,104790.0,0.44124548]
[1749921934958,0.35908277,104800.0,104790.0,0.44124548]
[1749921935360,0.35908268,104800.0,104790.0,0.44124548]
[1749921936633,0.34954125,104800.0,104790.0,0.44124548]
[1749921937918,0.35908268,104800.0,104790.0,0.44124548]
[1749921938362,0.3686242,104800.0,104790.0,0.44124548]
[1749921939712,0.3686242,104800.0,104790.0,0.28208548]
[1749921939916,0.37816591,104800.0,104790.0,0.44116548]
[1749921940120,0.3686242,104800.0,104790.0,0.44116548]
[1749921940547,0.37816582,104800.0,104790.0,0.44116548]
[1749921940742,0.3686242,104800.0,104790.0,0.44116548]
[1749921940901,0.37816582,104800.0,104790.0,0.44116548]
[1749921941111,0.43116431,104800.0,104790.0,0.44116548]
[1749921942085,0.44070611,104800.0,104790.0,0.44116548]
[1749921942392,0.44070602,104800.0,104790.0,0.44116548]
[1749921943205,0.38729253,104800.0,104790.0,0.44116548]
[1749921945103,0.3682092,104800.0,104790.0,0.44116548]
[1749921945497,0.37775082,104800.0,104790.0,0.44116548]
[1749921947257,0.37775082,104800.0,104790.0,0.28208548]
[1749921948577,0.3682093,104800.0,104790.0,0.28208548]
[1749921950180,0.42325373,104800.0,104790.0,0.28208548]
[1749921950411,0.43279535,104800.0,104790.0,0.28208548]
[1749921950638,0.35866768,104800.0,104790.0,0.28208548]
[1749921951361,0.3682093,104800.0,104790.0,0.28208548]
[1749921951645,0.35866768,104800.0,104790.0,0.28208548]
[1749921952149,0.34912616,104800.0,104790.0,0.28208548]
[1749921952392,0.3586675,104800.0,104790.0,0.28208548]
[1749921953057,0.34912616,104800.0,104790.0,0.28208548]
[1749921953284,0.05406113,104810.0,104790.0,0.26300015]
[1749921953466,0.05406113,104810.0,104800.0,0.28286454]
[1749921953467,0.38070842,104810.0,104800.0,0.28286454]
[1749921953702,0.40590403,104810.0,104800.0,0.28286454]
[1749921954319,0.40590385,104810.0,104800.0,0.28286454]
[1749921954502,0.41544465,104810.0,104800.0,0.28286454]
[1749921954757,0.408731,104810.0,104800.0,0.28286454]
[1749921955179,0.41827189,104810.0,104800.0,0.28286454]
[1749921955396,0.41827869,104810.0,104800.0,0.28286454]
[1749921955810,0.41827923,104810.0,104800.0,0.28286454]
[1749921956261,0.40933137,104810.0,104800.0,0.28286454]
[1749921956485,0.41827924,104810.0,104800.0,0.28286454]
[1749921957292,0.05665186,104810.0,104800.0,0.28286454]
[1749921957519,0.04711088,104810.0,104800.0,0.28286454]
[1749921957810,0.04711089,104810.0,104800.0,0.28286454]
[1749921958661,0.03816301,104810.0,104800.0,0.28286454]
[1749921958863,0.06795934,104810.0,104800.0,0.28286454]
[1749921959067,0.03756999,104810.0,104800.0,0.28286454]
[1749921959509,0.03756969,104810.0,104800.0,0.28286454]
[1749921959922,0.04711058,104810.0,104800.0,0.28286454]
[1749921960524,0.03756969,104810.0,104800.0,0.28286454]
[1749921960943,0.07646531,104810.0,104800.0,0.28286454]
[1749921961364,0.03756969,104810.0,104800.0,0.28286454]
[1749921962211,0.02802889,104810.0,104800.0,0.28286454]
[1749921962429,0.00894757,104810.0,104800.0,0.44186454]
[1749921962640,0.27979163,104820.0,104810.0,0.2813436]
[1749921962860,0.23755163,104820.0,104810.0,0.2813436]
[1749921963066,0.62600263,104820.0,104810.0,0.2813436]
[1749921963285,0.65843575,104820.0,104810.0,0.2813436]
[1749921963733,0.63554243,104820.0,104810.0,0.2813436]
[1749921963933,0.60697104,104820.0,104810.0,0.2813436]
[1749921964160,0.62605045,104820.0,104810.0,0.2813436]
[1749921964374,0.62604989,104820.0,104810.0,0.2813436]
[1749921964625,0.61651009,104820.0,104810.0,0.2813436]
[1749921965041,0.61651,104820.0,104810.0,0.2813436]
[1749921965269,0.61650965,104820.0,104810.0,0.2813436]
[1749921965903,0.60697013,104820.0,104810.0,0.2813436]
[1749921966292,0.59743079,104820.0,104810.0,0.2813436]
[1749921967170,0.59743059,104820.0,104810.0,0.2813436]
[1749921967581,0.59802423,104820.0,104810.0,0.2813436]
[1749921967758,0.59743061,104820.0,104810.0,0.2813436]
[1749921967901,0.58848489,104820.0,104810.0,0.2813436]
[1749921968109,0.25743059,104820.0,104810.0,0.2813436]
[1749921969804,0.25743041,104820.0,104810.0,0.2813436]
[1749921970217,0.26696975,104820.0,104810.0,0.2813436]
[1749921970436,0.25802423,104820.0,104810.0,0.2813436]
[1749921970644,0.26696967,104820.0,104810.0,0.2813436]
[1749921970851,0.03388086,104820.0,104810.0,0.2813436]
[1749921971070,0.00899316,104820.0,104810.0,0.2813436]
[1749921972514,4.772e-05,104820.0,104810.0,0.2813436]
[1749921972717,0.00899329,104820.0,104810.0,0.2813436]
[1749921972875,0.38833999,104820.0,104810.0,0.2813436]
[1749921973632,0.39787942,104820.0,104810.0,0.2813436]
[1749921973832,0.39787941,104820.0,104810.0,0.2813436]
[1749921974376,0.39787942,104820.0,104810.0,0.2813436]
[1749921974733,0.40741903,104820.0,104810.0,0.2813436]
[1749921975138,0.39847346,104820.0,104810.0,0.2813436]
[1749921975319,0.38893385,104820.0,104810.0,0.2813436]
[1749921975523,0.39847337,104820.0,104810.0,0.2813436]
[1749921975717,0.40801298,104820.0,104810.0,0.2813436]
[1749921977675,0.37939442,104820.0,104810.0,0.35696154]
[1749921977926,0.37939442,104820.0,104810.0,0.4532033]
[1749921977927,4.772e-05,104820.0,104810.0,0.4532033]
[1749921979085,4.772e-05,104820.0,104810.0,0.6128433]
[1749921979855,4.772e-05,104820.0,104810.0,0.6178433]
[1749921979982,4.772e-05,104820.0,104810.0,1.3789292]
[1749921980209,4.772e-05,104820.0,104810.0,0.6178433]
[1749921980435,4.772e-05,104820.0,104810.0,0.6168433]
[1749921980902,4.772e-05,104820.0,104810.0,1.3779292]
[1749921981308,4.772e-05,104820.0,104810.0,0.6168433]
[1749921981544,4.772e-05,104820.0,104810.0,0.6198433]
[1749921982418,4.772e-05,104820.0,104810.0,0.55984239]
[1749921982627,4.772e-05,104820.0,104810.0,0.54422536]
[1749921984646,4.772e-05,104820.0,104810.0,0.41315774]
[1749921984860,4.772e-05,104820.0,104810.0,0.57255774]
[1749921986110,4.772e-05,104820.0,104810.0,0.57291774]
[1749921987140,4.772e-05,104820.0,104810.0,0.57287774]
[1749921996430,4.772e-05,104820.0,104810.0,0.56987774]
[1749921996629,4.772e-05,104820.0,104810.0,0.56587774]
[1749921996773,4.772e-05,104820.0,104810.0,0.57587774]
[1749922004411,4.772e-05,104820.0,104810.0,0.57519774]
[1749922008044,4.772e-05,104820.0,104810.0,1.33605075]
[1749922008250,4.772e-05,104820.0,104810.0,1.39317574]
[1749922011401,4.772e-05,104820.0,104810.0,0.63232273]
[1749922011730,4.772e-05,104820.0,104810.0,0.57519774]
[1749922017236,4.772e-05,104820.0,104810.0,0.57507774]
[1749922020791,4.772e-05,104820.0,104810.0,0.38758536]
[1749922020992,4.772e-05,104820.0,104810.0,0.54650536]
[1749922022156,4.772e-05,104820.0,104810.0,0.38758536]
[1749922022357,4.772e-05,104820.0,104810.0,0.54650536]
[1749922024489,0.00958706,104820.0,104810.0,0.38758536]
[1749922024690,0.00958706,104820.0,104810.0,0.54650536]
[1749922025145,4.772e-05,104820.0,104810.0,0.35738536]
[1749922025369,4.772e-05,104820.0,104810.0,0.48460536]
[1749922025575,0.00958724,104820.0,104810.0,0.47460536]
[1749922025862,0.00958715,104820.0,104810.0,0.47760536]
[1749922026248,0.00958715,104820.0,104810.0,0.48160536]
[1749922026657,0.00958724,104820.0,104810.0,0.48160536]
[1749922026877,0.00958715,104820.0,104810.0,0.48160536]
[1749922027796,0.02866683,104820.0,104810.0,0.2264436]
[1749922028020,0.0382069,104820.0,104810.0,0.3853636]
[1749922028245,0.21947011,104820.0,104810.0,0.21690317]
[1749922028473,0.21947075,104820.0,104810.0,0.37582326]
[1749922028694,0.21947075,104820.0,104810.0,0.23598439]
[1749922028932,0.26138987,104820.0,104810.0,0.21690317]
[1749922029149,0.26138987,104820.0,104810.0,0.37282317]
[1749922029591,0.26138987,104820.0,104810.0,0.36982317]
[1749922029810,0.21947075,104820.0,104810.0,0.37182317]
[1749922030547,0.20993105,104820.0,104810.0,0.37182326]
[1749922031827,0.20993105,104820.0,104810.0,0.38136397]
[1749922032242,0.54993105,104820.0,104810.0,0.37182326]
[1749922032458,0.65501208,104820.0,104810.0,0.36228246]
[1749922032688,0.65501208,104820.0,104810.0,0.21290335]
[1749922033132,0.65501208,104820.0,104810.0,0.22244415]
[1749922033531,0.64608027,104820.0,104810.0,0.22244415]
[1749922034273,0.54993105,104820.0,104810.0,0.22244415]
[1749922034478,0.54993105,104820.0,104810.0,0.22244406]
[1749922034681,0.55947121,104820.0,104810.0,0.23198467]
[1749922035036,0.55947121,104820.0,104810.0,0.22244406]
[1749922035221,0.35912777,104820.0,104810.0,0.23198449]
[1749922035439,0.42321956,104820.0,104810.0,0.23198449]
[1749922036052,0.35912777,104820.0,104810.0,0.23198449]
[1749922042346,0.3591274,104820.0,104810.0,0.23198449]
[1749922043403,0.36866747,104820.0,104810.0,0.23198449]
[1749922044471,0.36866747,104820.0,104810.0,0.22244406]
[1749922044679,0.37820763,104820.0,104810.0,0.23198467]
[1749922044917,0.56901091,104820.0,104810.0,0.22244406]
[1749922046918,0.56901091,104820.0,104810.0,0.23198467]
[1749922047347,0.55947121,104820.0,104810.0,0.26318467]
[1749922048558,0.55947121,104820.0,104810.0,0.25364406]
[1749922049835,0.55947121,104820.0,104810.0,0.28684406]
[1749922053300,0.58234194,104820.0,104810.0,0.28684406]
[1749922053500,0.59128321,104820.0,104810.0,0.28684406]
[1749922054128,0.40047993,104820.0,104810.0,0.29638449]
[1749922054471,0.36866793,104820.0,104810.0,0.29638449]
[1749922054612,0.37760897,104820.0,104810.0,0.29638449]
[1749922054815,0.37760897,104820.0,104810.0,0.28684406]
[1749922054816,0.56841225,104820.0,104810.0,0.28684406]
[1749922055010,0.59129179,104820.0,104810.0,0.29638467]
[1749922055662,0.59129193,104820.0,104810.0,0.29638467]
[1749922056615,0.59129193,104820.0,104810.0,0.30592519]
[1749922056834,0.40048865,104820.0,104810.0,0.30592519]
[1749922057041,0.37760909,104820.0,104810.0,0.30592519]
[1749922057241,0.57512529,104820.0,104810.0,0.29638467]
[1749922057443,0.59800485,104820.0,104810.0,0.29638467]
[1749922057681,0.40720157,104820.0,104810.0,0.30592519]
[1749922057884,0.37478186,104820.0,104810.0,0.30592464]
[1749922058062,0.3658407,104820.0,104810.0,0.30592464]
[1749922058393,0.37479113,104820.0,104810.0,0.30592464]
[1749922058802,0.38433129,104820.0,104810.0,0.30592464]
[1749922059460,0.34899815,104820.0,104810.0,0.47778434]
[1749922059887,0.34899718,104820.0,104810.0,0.47778434]
[1749922060096,0.34899699,104820.0,104810.0,0.47778434]
[1749922060928,0.34004772,104820.0,104810.0,0.47778434]
[1749922061135,0.34899718,104820.0,104810.0,0.47778434]
[1749922061997,0.34004772,104820.0,104810.0,0.47778434]
[1749922062226,0.3489972,104820.0,104810.0,0.47778434]
[1749922062448,0.3489972,104820.0,104810.0,0.4021664]
[1749922062656,0.35853663,104820.0,104810.0,0.4021664]
[1749922063514,0.35853149,104820.0,104810.0,0.4021664]
[1749922063733,0.35853133,104820.0,104810.0,0.4021664]
[1749922063938,0.36807094,104820.0,104810.0,0.5610464]
[1749922064759,0.35853133,104820.0,104810.0,0.5610464]
[1749922064965,0.36807103,104820.0,104810.0,0.5610464]
[1749922065184,0.37761092,104820.0,104810.0,0.5610464]
[1749922065392,0.36807103,104820.0,104810.0,0.5610464]
[1749922065854,0.37761092,104820.0,104810.0,0.5610464]
[1749922066476,0.3776112,104820.0,104810.0,0.5610464]
[1749922067562,0.3776112,104820.0,104810.0,0.30592464]
[1749922067775,0.44818683,104820.0,104810.0,0.45526412]
[1749922067974,0.43924237,104820.0,104810.0,0.45526412]
[1749922068256,0.4481867,104820.0,104810.0,0.45526412]
[1749922069432,0.45772677,104820.0,104810.0,0.45526412]
[1749922069863,0.45772645,104820.0,104810.0,0.45526412]
[1749922070298,0.44878244,104820.0,104810.0,0.45526412]
[1749922070518,0.45772594,104820.0,104810.0,0.45526412]
[1749922071172,0.39669029,104820.0,104810.0,0.45526412]
[1749922071637,0.05664232,104820.0,104810.0,0.45526412]
[1749922071815,0.04769907,104820.0,104810.0,0.45526412]
[1749922072509,0.23850308,104820.0,104810.0,0.45526421]
[1749922072721,0.23850308,104820.0,104810.0,0.46480464]
[1749922073123,0.0476998,104820.0,104810.0,0.46480464]
[1749922074173,0.23850308,104820.0,104810.0,0.43618308]
[1749922074373,0.22896338,104820.0,104810.0,0.43618308]
[1749922074578,0.02861994,104820.0,104810.0,0.45526403]
[1749922074783,0.02861884,104820.0,104810.0,0.45526403]
[1749922075315,0.03815882,104820.0,104810.0,0.45526403]
[1749922076303,0.25185672,104820.0,104810.0,0.43614298]
[1749922076501,0.25185672,104820.0,104810.0,0.27730298]
[1749922078875,0.20034289,104820.0,104810.0,0.2868435]
[1749922079018,0.21942221,104820.0,104810.0,0.29638393]
[1749922079232,0.03815882,104820.0,104810.0,0.29638393]
[1749922079435,0.03815863,104820.0,104810.0,0.29638393]
[1749922079998,0.0476987,104820.0,104810.0,0.29638393]
[1749922080351,0.04769952,104820.0,104810.0,0.29638393]
[1749922080574,0.02861929,104820.0,104810.0,0.29638393]
[1749922080912,0.02861875,104820.0,104810.0,0.29638393]
[1749922081879,0.03815873,104820.0,104810.0,0.29638393]
[1749922082498,0.04710265,104820.0,104810.0,0.29638393]
[1749922083456,0.04710388,104820.0,104810.0,0.29638393]
[1749922084250,0.0280241,104820.0,104810.0,0.29638393]
[1749922085295,0.02802406,104820.0,104810.0,0.29638393]
[1749922085472,0.02861875,104820.0,104810.0,0.29638393]
[1749922085703,0.03756381,104820.0,104810.0,0.29638393]
[1749922085908,0.02802401,104820.0,104810.0,0.29638393]
[1749922086548,0.0280239,104820.0,104810.0,0.29638393]
[1749922086952,0.0375636,104820.0,104810.0,0.29638393]
[1749922088325,0.01848438,104820.0,104810.0,0.29638393]
[1749922088784,0.0280239,104820.0,104810.0,0.29638393]
[1749922089206,0.02802518,104820.0,104810.0,0.29638393]
[1749922089708,0.01848566,104820.0,104810.0,0.29638393]
[1749922089916,0.02802516,104820.0,104810.0,0.29638393]
[1749922090154,0.01848564,104820.0,104810.0,0.29638393]
[1749922091134,0.01848559,104820.0,104810.0,0.29638393]
[1749922091348,0.01848564,104820.0,104810.0,0.29638393]
[1749922091793,0.02802516,104820.0,104810.0,0.29638393]
[1749922092011,0.01848564,104820.0,104810.0,0.29638393]
[1749922092461,0.02802525,104820.0,104810.0,0.29638393]
[1749922093294,0.02802868,104820.0,104810.0,0.29638393]
[1749922094609,0.01907895,104820.0,104810.0,0.29638393]
[1749922094815,0.02802868,104820.0,104810.0,0.29638393]
[1749922095414,0.04710803,104820.0,104810.0,0.29638393]
[1749922095629,0.03756805,104820.0,104810.0,0.29638393]
[1749922095841,0.04710794,104820.0,104810.0,0.29638393]
[1749922096047,0.03756806,104820.0,104810.0,0.29638393]
[1749922096474,0.02861865,104820.0,104810.0,0.29638393]
[1749922096681,0.04710795,104820.0,104810.0,0.29638393]
[1749922096887,0.03756806,104820.0,104810.0,0.29638393]
[1749922097077,0.04710795,104820.0,104810.0,0.29638393]
[1749922097506,0.04769852,104820.0,104810.0,0.29638393]
[1749922097716,0.05664793,104820.0,104810.0,0.29638393]
[1749922098340,0.05664866,104820.0,104810.0,0.29638393]
[1749922098548,0.04710859,104820.0,104810.0,0.29638393]
[1749922099422,0.05664866,104820.0,104810.0,0.29638393]
[1749922099904,0.03756861,104820.0,104810.0,0.29638393]
[1749922100329,0.04710859,104820.0,104810.0,0.29638393]
[1749922100741,0.03756861,104820.0,104810.0,0.29638393]
[1749922100956,0.04710851,104820.0,104810.0,0.29638393]
[1749922103891,0.04710831,104820.0,104810.0,0.29638393]
[1749922104498,0.04710822,104820.0,104810.0,0.29638393]
[1749922105193,0.03815918,104820.0,104810.0,0.29638393]
[1749922105395,0.04710822,104820.0,104810.0,0.29638393]
[1749922106240,0.03815918,104820.0,104810.0,0.29638393]
[1749922106447,0.04710799,104820.0,104810.0,0.29638393]
[1749922106644,0.03815918,104820.0,104810.0,0.29638393]
[1749922106848,0.04710799,104820.0,104810.0,0.29638393]
[1749922107526,0.24745134,104820.0,104810.0,0.29638393]
[1749922107852,0.05664806,104820.0,104810.0,0.29638393]
[1749922108050,0.05664861,104820.0,104810.0,0.29638393]
[1749922108454,0.05664919,104820.0,104810.0,0.29638393]
[1749922108857,0.04710903,104820.0,104810.0,0.29638393]
[1749922109538,0.23791231,104820.0,104810.0,0.27730317]
[1749922109724,0.22837261,104820.0,104810.0,0.26776237]
[1749922109929,0.21883272,104820.0,104810.0,0.26776237]
[1749922110337,0.21883317,104820.0,104810.0,0.26776237]
[1749922111128,0.59718553,104820.0,104810.0,0.0674]
[1749922111319,0.62007165,104820.0,104810.0,0.003]
[1749922111546,0.62678456,104820.0,104810.0,0.003]
[1749922111746,5.60250822,104820.0,104810.0,0.003]
[1749922111921,5.60250915,104820.0,104810.0,0.003]
[1749922112630,5.60250932,104820.0,104810.0,0.003]
[1749922113190,5.63111697,104820.0,104810.0,0.003]
[1749922113405,5.63111711,104820.0,104810.0,0.003]
[1749922113607,5.76126946,104820.0,104810.0,0.003]
[1749922114167,5.76126987,104820.0,104810.0,0.003]
[1749922114367,5.85751163,104820.0,104810.0,0.003]
[1749922114951,5.85751164,104820.0,104810.0,0.003]
[1749922116555,5.91328032,104820.0,104810.0,0.003]
[1749922117643,5.913248,104820.0,104810.0,0.003]
[1749922118055,5.90654853,104820.0,104810.0,0.0349]
[1749922118262,5.913248,104820.0,104810.0,0.0349]
[1749922118699,5.90431538,104820.0,104810.0,0.0349]
[1749922118911,5.913248,104820.0,104810.0,0.0349]
[1749922119120,5.90370793,104820.0,104810.0,0.0349]
[1749922119541,5.89477531,104820.0,104810.0,0.0349]
[1749922119827,5.90370793,104820.0,104810.0,0.0349]
[1749922120061,5.84793925,104820.0,104810.0,0.0349]
[1749922121294,5.84793925,104820.0,104810.0,0.0656]
[1749922121468,5.84793755,104820.0,104810.0,0.0656]
[1749922121674,5.84793529,104820.0,104810.0,0.0656]
[1749922122301,0.56931753,104820.0,104810.0,0.25642148]
[1749922122484,0.56261931,104820.0,104810.0,0.0656]
[1749922123041,0.56261923,104820.0,104810.0,0.0656]
[1749922123883,0.56261917,104820.0,104810.0,0.0656]
[1749922124291,0.76345917,104820.0,104810.0,0.07514107]
[1749922124502,0.76345917,104820.0,104810.0,0.0656]
[1749922125258,0.76345917,104820.0,104810.0,0.26596255]
[1749922125453,0.76345917,104820.0,104810.0,0.27550353]
[1749922126443,0.56261917,104820.0,104810.0,0.28504442]
[1749922126650,0.76341829,104820.0,104810.0,0.28504442]
[1749922128325,0.56261829,104820.0,104810.0,0.28504442]
[1749922129288,0.56261829,104820.0,104810.0,0.27550353]
[1749922129902,0.58169806,104820.0,104810.0,0.28504433]
[1749922130498,0.58170086,104820.0,104810.0,0.28504433]
[1749922131307,0.58170086,104820.0,104810.0,0.27550353]
[1749922131559,0.57216125,104820.0,104810.0,0.27550353]
[1749922133085,0.57216125,104820.0,104810.0,0.28504442]
[1749922133454,0.57216322,104820.0,104810.0,0.28504442]
[1749922137117,0.56322956,104820.0,104810.0,0.28504442]
[1749922137331,0.57216322,104820.0,104810.0,0.28504442]
[1749922138012,0.57216322,104820.0,104810.0,0.27550353]
[1749922138456,0.56262546,104820.0,104810.0,0.26596255]
[1749922138818,0.56262546,104820.0,104810.0,0.0656]
[1749922139244,0.75501644,104820.0,104810.0,0.0349]
[1749922139511,0.76171867,104820.0,104810.0,0.0349]
[1749922140018,5.78533467,104820.0,104810.0,0.0672]
[1749922140430,5.68918545,104820.0,104810.0,0.0672]
[1749922140601,5.7177931,104820.0,104810.0,0.0672]
[1749922141995,5.3777931,104820.0,104810.0,0.0672]
[1749922142217,5.17673599,104820.0,104810.0,0.0672]
[1749922142828,5.17673598,104820.0,104810.0,0.0672]
[1749922143779,5.17674205,104820.0,104810.0,0.0672]
[1749922143975,5.17674254,104820.0,104810.0,0.0672]
[1749922144177,5.51674254,104820.0,104810.0,0.0672]
[1749922145341,5.51674318,104820.0,104810.0,0.0672]
[1749922145752,5.51003439,104820.0,104810.0,0.0672]